Cogmind - Beta 13 @@@ ROGUE MODE // 2024.05.02 @ 12:10:13 Player: BrainTooSmol Result: Self-destructed Performance ------------- Evolutions (3) 1500 Regions Visited (9) 1800 Robots Destroyed (81) 405 Value Destroyed (3711) 3711 Prototype IDs (24) 480 Alien Tech Used (0) 0 Bonus (3343) 3343 TOTAL SCORE: 11239 Bonus ------- High Alert Combat Kills 457 Follower Combat Kills 769 Entered Garrisons 400 Used RIF Installer 1500 Aligned with FarCom 300 Friendly Fire -83 Cogmind --------- Core Integrity 633/700 Matter 20/300 Energy 70/100 System Corruption 4% Temperature Cool (0) Movement Core (1050) Ox20 Location -7/Factory Parts ------- > --- POWER (1) -------- (None) > --- PROPULSION (2) --- (None) > --- UTILITY (8) ------ High-capacity Storage Unit Hardened Heavy Armor Plating Relay Coupler [NC] (3) Relay Coupler [Swarmer] (20) Relay Coupler [Grunt] (15) Relay Coupler [Brawler] (7) Relay Coupler [Demolisher] (1) > --- WEAPON (2) ------- Hammer > --- INVENTORY (20) --- Huge Storage Unit Improved Transmission Jammer Hardened Heavy Armor Plating Reactive Plating Relay Coupler [NC] (31) Relay Coupler [Swarmer] (50) Relay Coupler [Grunt] (24) Relay Coupler [Grunt] (22) Relay Coupler [Hunter] (19) Relay Coupler [Hunter] (13) Relay Coupler [Hunter] (17) Improved Arc Projector Light Assault Rifle Light Assault Rifle Peak State ------------ > --- POWER ------------ Micro Nuclear Core > --- PROPULSION ------- Light Treads > --- UTILITY ---------- High-capacity Storage Unit Hardened Heavy Armor Plating Relay Coupler [NC] Relay Coupler [Swarmer] Relay Coupler [Grunt] Relay Coupler [Sentry] Relay Coupler [Demolisher] > --- WEAPON ----------- Remote Datajack Hammer > --- INVENTORY -------- Improved Transmission Jammer Hardened Heavy Armor Plating Hardened Heavy Armor Plating Reactive Plating Relay Coupler [NC] Relay Coupler [Swarmer] Relay Coupler [Grunt] Relay Coupler [Grunt] Relay Coupler [Brawler] Relay Coupler [Hunter] Relay Coupler [Hunter] Relay Coupler [Hunter] Improved Arc Projector Light Assault Rifle Light Assault Rifle Remote Datajack [Rating: 41] Favorites ----------- Power Cooled Ion Engine Engine Cooled Ion Engine Power Core Micro Nuclear Core Propulsion Light Treads Treads Light Treads Leg Aluminum Leg Wheel Wheel Utility High-capacity Storage Unit Device Seismic Detector Storage High-capacity Storage Unit Processor Advanced Visual Processing Unit Hackware Relay Coupler [Swarmer] Protection Hardened Heavy Armor Plating Weapon Hammer Energy Gun Particle Gun Energy Cannon EM Pulse Cannon Ballistic Gun High-powered Shotgun Ballistic Cannon Light Cannon Launcher Proton Missile Launcher Special Weapon Remote Datajack Impact Weapon Hammer Build | -11 -10 -10 -10 -9 -8 -8 -8 -8 -7 ------- Run | Yrd Mat Min Exi Min Mat Gar Mat Gar Fac Slots Evolved 6 | . . . . . 4 . . . 2 Power . | . . . . . . . . . . Propulsion . | . . . . . . . . . . Utility 6 | . . . . . 4 . . . 2 Weapon . | . . . . . . . . . . Parts Attached 90 | 1 7 6 2 5 11 23 5 26 4 Power 7 | . 1 1 . . 3 1 . 1 . Engine 5 | . . 1 . . 3 1 . . . Core 2 | . 1 . . . . . . 1 . Reactor . | . . . . . . . . . . Propulsion 12 | . 2 3 . 1 2 3 . 1 . Treads 9 | . 2 3 . . 1 2 . 1 . Leg . | . . . . . . . . . . Wheel 3 | . . . . 1 1 1 . . . Hover . | . . . . . . . . . . Flight . | . . . . . . . . . . Utility 37 | 1 2 . 1 1 4 8 4 13 3 Device 3 | 1 1 . . . 1 . . . . Storage 2 | . 1 . 1 . . . . . . Processor 2 | . . . . . 2 . . . . Hackware 17 | . . . . . . 2 3 11 1 Protection 13 | . . . . 1 1 6 1 2 2 Artifact . | . . . . . . . . . . Weapon 34 | . 2 2 1 3 2 11 1 11 1 Energy Gun 2 | . . 1 . . . . . 1 . Energy Cannon 4 | . . . 1 . 2 1 . . . Ballistic Gun 8 | . . . . . . 4 . 4 . Ballistic Cannon 3 | . 2 1 . . . . . . . Launcher 3 | . . . . 2 . 1 . . . Special Weapon 7 | . . . . . . 2 1 3 1 Impact Weapon 7 | . . . . 1 . 3 . 3 . Slashing Weapon . | . . . . . . . . . . Piercing Weapon . | . . . . . . . . . . Special Melee Weapon . | . . . . . . . . . . Unidentified Prototypes 1 | . . . . . 1 . . . . Parts Lost 28 | . . 4 . 2 2 10 . 4 6 Power 4 | . . 1 . . 1 1 . . 1 Propulsion 7 | . . 1 . 1 . 2 . 2 1 Utility 8 | . . . . 1 . 4 . 1 2 Weapon 9 | . . 2 . . 1 3 . 1 2 Highest Loss Streak 6 | . . 2 . 2 2 6 . 2 6 To Critical Strikes . | . . . . . . . . . . Average Slot Usage (%) 91 | . 99 99 90 89 85 91 84 88 81 Engine 7 | . 1 9 14 14 8 8 9 4 . Core 3 | . 12 3 . . . . . 4 6 Treads 14 | . 27 27 28 23 8 8 9 7 6 Wheel 4 | . . . . 4 9 8 9 4 . Device 5 | . 13 14 14 9 5 1 . . . Storage 10 | . 14 14 14 14 9 9 9 9 7 Processor 5 | . . . . . 10 13 9 4 . Hackware 13 | . . . . . . 8 10 34 38 Protection 6 | . . . . 4 15 14 15 2 4 Energy Gun 1 | . . 9 5 . . . . . . Energy Cannon 2 | . . . 8 9 12 1 . . . Ballistic Gun 1 | . . . . . . 4 . . . Ballistic Cannon 5 | . 27 18 5 . . . . . . Special Weapon 3 | . . . . . . 3 4 7 7 Impact Weapon 4 | . . . . 4 2 6 9 8 7 Naked Turns . | . . . . . . . . . . Heaviest Build 86 | 12 32 32 68 68 86 86 78 76 71 Greatest Support 40 | 20 40 40 40 40 10 10 10 20 20 Greatest Overweight (x) 8 | . . . 1 5 8 8 7 7 3 Average Overweight (x) 3 | . . . . 2 7 6 6 4 2 Largest Inventory Capacity 20 | 8 15 15 20 20 20 20 20 20 20 Average Capacity 18 | 8 12 15 16 20 20 20 20 20 20 Most Carried 20 | 7 15 15 15 20 20 20 20 20 20 Average Carried 16 | 6 10 14 14 17 18 18 18 18 19 Final Capacity 20 | 8 15 15 20 20 20 20 20 20 20 Final Carried 20 | 7 15 15 15 16 20 20 16 20 15 Class Distribution -------------------- 50% | Mutant 39% | Bothacker-Mutant 10% | Scavenger-Mutant Dominant Class ---------------- Mutant | -10/Materials Mutant | -10/Mines Scavenger-Mutant | -10/Exiles Scavenger-Mutant | -9/Mines Mutant | -8/Materials Bothacker-Mutant | -8/Garrison Bothacker-Mutant | -8/Materials Bothacker-Mutant | -8/Garrison Bothacker-Mutant | -7/Factory Resources | -11 -10 -10 -10 -9 -8 -8 -8 -8 -7 ----------- Run | Yrd Mat Min Exi Min Mat Gar Mat Gar Fac Matter Collected 2871 | 212 324 261 150 220 159 797 35 713 . Remotely . | . . . . . . . . . . Salvage Created 2262 | 26 293 137 . 300 583 875 . 48 . Parts 125 | 4 14 11 . 15 28 51 . 2 . Haulers Intercepted 2 | . . . . . 2 . . . . Recyclers Shooed 1 | . . . . . 1 . . . . Parts Field Recycled . | . . . . . . . . . . Retrieved Matter . | . . . . . . . . . . Parts Self-Destructed . | . . . . . . . . . . Prevented . | . . . . . . . . . . Kills | -11 -10 -10 -10 -9 -8 -8 -8 -8 -7 ------- Run | Yrd Mat Min Exi Min Mat Gar Mat Gar Fac Combat Hostiles Destroyed 76 | . 7 10 . 13 11 34 . 1 . Melee 3 | . . . . . . 3 . . . Guns 18 | . . . . . . 17 . 1 . Cannons 29 | . 7 10 . 3 6 3 . . . AOE 21 | . . . . 9 4 8 . . . Classes Destroyed 14 | 1 2 1 . 4 4 2 . . . Worker 1 | . . . . . 1 . . . . Tunneler 2 | 1 . . . 1 . . . . . Hauler 2 | . . . . . 2 . . . . Recycler 1 | . . . . 1 . . . . . Operator 1 | . . . . 1 . . . . . Watcher 4 | . 3 . . . 1 . . . . Swarmer 28 | . . 6 . 4 4 14 . . . Grunt 23 | . 7 4 . 2 3 7 . . . Brawler 1 | . . . . . . 1 . . . Sentry 11 | . . . . . 3 8 . . . Hunter 1 | . . . . . 1 . . . . Programmer 5 | . . . . . . 4 . 1 . Zionite 1 | . . . . 1 . . . . . Assembled 7 | . . . . 7 . . . . . Best Kill Streak 13 | 1 2 3 . 8 4 13 . 1 . Combat Bots Only 13 | . 2 3 . 7 4 13 . 1 . Max Kills in Single Turn 6 | 1 1 1 . 6 3 2 . 1 . Gunslinging 1 | . . . . . . 1 . . . Exploded 3 | . . . . 3 3 2 . . . Melee 1 | . . . . . . 1 . . . Uniques/NPCs Destroyed . | . . . . . . . . . . Combat | -11 -10 -10 -10 -9 -8 -8 -8 -8 -7 -------- Run | Yrd Mat Min Exi Min Mat Gar Mat Gar Fac Hostile Shots Fired 517 | . 29 73 . 17 41 296 8 43 10 Missed 116 | . 6 15 . 2 14 63 4 9 3 Damage Taken 6076 | . 280 601 . 369 490 3162 76 480 618 Core 616 | . 11 93 . 25 25 340 . 55 67 Absorbed by Shields 76 | . . . . . . . . 76 . Ignored by Resistances 140 | . . . . . 30 110 . . . Regen/Repaired (Parts) 119 | . 17 . . . 102 . . . . Core Remaining (%) 57 | 100 . . . 48 . . . 23 . Volleys Fired 221 | 2 26 37 . 7 22 53 6 55 13 Largest 2 | 2 2 2 . 1 2 2 1 2 1 Hottest 250 | 60 70 100 . 250 126 126 5 65 5 Shots Fired 346 | 4 52 64 . 7 40 94 6 66 13 Gun 101 | 4 . 1 . . . 70 . 26 . Cannon 167 | . 52 63 . 4 37 11 . . . Launcher 16 | . . . . 3 3 10 . . . Special 62 | . . . . . . 3 6 40 13 Kinetic 210 | 2 52 63 . . . 70 . 23 . Thermal 6 | . . 1 . 4 . 1 . . . Explosive 13 | . . . . 3 . 10 . . . Electromagnetic 56 | 2 . . . . 40 11 . 3 . Robot Hit Streak 11 | 3 6 6 . 3 11 10 10 8 10 Robot Miss Streak 4 | . 3 4 . 2 2 4 1 4 1 Penetration Max . | . . . . . . . . . . Secondary Targets 3 | . . . . . . 3 . . . Max Gunslinging Chain 1 | . . . . . . 1 . . . Shots Hit Robots 283 | 3 29 34 . 4 31 120 5 46 11 Core Hits 118 | 1 13 12 . 25 18 44 . 5 . Critical Kills 2 | . . . . . . 2 . . . Critical Parts Destroyed 7 | . . . . . 1 6 . . . Critical Strikes 12 | . 1 1 . . 1 9 . . . Destroy 1 | . . . . . . 1 . . . Blast 2 | . 1 1 . . . . . . . Corrupt 1 | . . . . . . 1 . . . Smash 8 | . . . . . 1 7 . . . Melee Attacks 129 | . . . . . 2 89 . 38 . Impact 129 | . . . . . 2 89 . 38 . Slashing . | . . . . . . . . . . Piercing . | . . . . . . . . . . Sneak Attacks 1 | . . . . . . 1 . . . Combat Hostiles 1 | . . . . . . 1 . . . Follow-up Attacks . | . . . . . . . . . . Damage Inflicted 6499 | 31 532 643 . 650 1273 3125 . 245 . Guns 1364 | 31 . 13 . . . 1075 . 245 . Cannons 2121 | . 532 630 . 108 717 134 . . . Explosions 1825 | . . . . 531 523 771 . . . Melee 1178 | . . . . . 33 1145 . . . Ramming 11 | . . . . 11 . . . . . Kinetic 2470 | 6 532 630 . . . 1075 . 227 . Thermal 540 | . . 13 . 438 89 . . . . Explosive 1287 | . . . . 201 315 771 . . . Electromagnetic 1013 | 25 . . . . 836 134 . 18 . Impact 1178 | . . . . . 33 1145 . . . Slashing . | . . . . . . . . . . Piercing . | . . . . . . . . . . Highest Corruption 22 | . 1 1 1 1 2 18 18 22 4 Average Corruption 10 | . 1 1 1 1 2 8 18 19 4 Corruption Purged . | . . . . . . . . . . Corruption Blocked . | . . . . . . . . . . Effects 285 | . . 9 4 7 11 96 5 153 . Message Errors 68 | . . 1 1 2 3 23 2 36 . Matter Fused 89 | . . 4 1 4 4 28 . 48 . Heat Flow Errors 32 | . . 1 . 1 . 13 . 17 . Energy Discharges 39 | . . 1 1 . 1 14 1 21 . Parts Rejected 1 | . . . . . . 1 . . . Parts Fused 3 | . . . . . . 1 1 1 . Data Loss (minor) 31 | . . . . . 1 10 1 19 . Data Loss (major) 6 | . . 1 1 . . 2 . 2 . Misfires 2 | . . . . . . 2 . . . Alerts 8 | . . . . . 1 1 . 6 . Misdirections 2 | . . . . . . . . 2 . Weapon Failures 4 | . . 1 . . 1 1 . 1 . Overload Shots . | . . . . . . . . . . Overflow Damage 282 | . 5 17 . . 41 219 . . . Projectiles 43 | . 5 17 . . 17 4 . . . Explosions 10 | . . . . . 9 1 . . . Melee 229 | . . . . . 15 214 . . . Knockbacks 15 | . 5 8 . . . 2 . . . Impact 2 | . . . . . . 2 . . . Kinetic 12 | . 5 7 . . . . . . . Secondary 1 | . . 1 . . . . . . . Self-Inflicted Damage 310 | . . . . 173 137 . . . . Shots 12 | . . . . 9 3 . . . . Rammed . | . . . . . . . . . . Targets Rammed 1 | . . . . 1 . . . . . Kicked . | . . . . . . . . . . Crushed 1 | . . . . 1 . . . . . Highest Temperature 502 | 20 219 267 . 502 268 274 . 262 . Average Temperature 94 | 15 56 81 . 182 84 85 . 103 . Received Heat Transfer 1598 | . 171 216 . 20 198 891 36 36 30 Effects 7 | . . 4 . 3 . . . . . Shutdowns 1 | . . . . 1 . . . . . Energy Bleed 1 | . . 1 . . . . . . . Interference 3 | . . 3 . . . . . . . Matter Decay 1 | . . . . 1 . . . . . Short Circuit 1 | . . . . 1 . . . . . Siege Activations . | . . . . . . . . . . Robots Corrupted 2 | . . . . . 2 . . . . Combat Hostiles . | . . . . . . . . . . Parts Fried 17 | . . . . . 11 6 . . . Impact Corruptions 15 | . . . . . 1 14 . . . Robots Melted 1 | . . . . 1 . . . . . Combat Hostiles 1 | . . . . 1 . . . . . Parts Melted 6 | . . . . 5 . 1 . . . Heat Transferred 2347 | . . 37 . 2210 100 . . . . Parts Sabotaged . | . . . . . . . . . . Parts Stolen . | . . . . . . . . . . Parts Stripped . | . . . . . . . . . . Power Chain Reactions 2 | . . . . . 2 . . . . Alert | -11 -10 -10 -10 -9 -8 -8 -8 -8 -7 ------- Run | Yrd Mat Min Exi Min Mat Gar Mat Gar Fac Peak Influence 2921 | 5 129 232 . 185 201 2116 1059 2921 1649 Initial 1533 | . 3 42 . . . 130 1031 688 1533 Average 820 | 3 71 60 . 83 95 1053 1039 1616 1548 Maximum Alert Level 5 | . . 1 . . . 5 3 5 5 Low Security (%) 43 | 100 100 85 . 100 100 11 . . . Level 1 1 | . . 14 . . . . . . . Level 2 7 | . . . . . . 24 . 3 . Level 3 11 | . . . . . . 18 100 21 . Level 4 17 | . . . . . . 23 . 32 60 Level 5 18 | . . . . . . 21 . 41 39 High Security . | . . . . . . . . . . Max Security . | . . . . . . . . . . Squads Dispatched 11 | . 3 . . 1 3 . 1 . 3 Investigation 5 | . 3 . . 1 1 . . . . Extermination 1 | . . . . . . . . . 1 Reinforcement 3 | . . . . . 2 . 1 . . Assault 2 | . . . . . . . . . 2 Garrison . | . . . . . . . . . . Intercept . | . . . . . . . . . . Searches Triggered . | . . . . . . . . . . Construction Impeded 1 | . . . . . 1 . . . . Haulers Reinforced . | . . . . . . . . . . Active Scanning Responses . | . . . . . . . . . . Cargo Convoy Interrupts . | . . . . . . . . . . Stealth | -11 -10 -10 -10 -9 -8 -8 -8 -8 -7 --------- Run | Yrd Mat Min Exi Min Mat Gar Mat Gar Fac Distress Signals 4 | . . . . . 4 . . . . Communications Jammed 15 | . . . . . . . . . 15 Distress Signals 15 | . . . . . . . . . 15 Times Spotted 182 | . 22 14 . 11 25 51 4 36 19 Peak Tracking Total 12 | . 5 3 . 4 4 9 3 8 12 Tactical Retreats 16 | . 8 1 . . 2 3 . 2 . Traps | -11 -10 -10 -10 -9 -8 -8 -8 -8 -7 ------- Run | Yrd Mat Min Exi Min Mat Gar Mat Gar Fac Traps Triggered 12 | . . . . . 2 4 . 6 . Indirectly . | . . . . . . . . . . Trap Hack Attempts . | . . . . . . . . . . Triggered . | . . . . . . . . . . Disarmed . | . . . . . . . . . . Reprogrammed . | . . . . . . . . . . Reused . | . . . . . . . . . . Traps Extracted . | . . . . . . . . . . Installed . | . . . . . . . . . . Triggered . | . . . . . . . . . . Machines | -11 -10 -10 -10 -9 -8 -8 -8 -8 -7 ---------- Run | Yrd Mat Min Exi Min Mat Gar Mat Gar Fac Machines Disabled 14 | . . . . 1 4 4 . 4 1 Max in Single Turn 2 | . . . . 1 2 1 . 1 . Garrison Relay 9 | . . . . . . 5 . 4 . Phase Generator 1 | . . . . . . 1 . . . Machines Repaired . | . . . . . . . . . . Machines Dismantled 2 | . . . . . . 2 . . . Machines Sabotaged . | . . . . . . . . . . Overloaded Fab Kills . | . . . . . . . . . . Hacking | -11 -10 -10 -10 -9 -8 -8 -8 -8 -7 --------- Run | Yrd Mat Min Exi Min Mat Gar Mat Gar Fac Machines Accessed 26 | . 10 . 2 1 5 2 1 4 1 Terminals 16 | . 7 . . . 3 2 . 4 . Fabricators . | . . . . . . . . . . Repair Stations 2 | . 1 . . . 1 . . . . Recycling Units 3 | . 2 . . . . . . . 1 Scanalyzers . | . . . . . . . . . . Garrison Access 2 | . . . . . 1 . 1 . . Total Hacks 49 | . 27 . 2 1 9 4 1 4 1 Successful 29 | . 15 . 2 1 6 . 1 4 . Failed 20 | . 12 . . . 3 4 . . 1 Catastrophic 2 | . 1 . . . . . . . 1 Database Lockouts . | . . . . . . . . . . Manual 26 | . 20 . 1 . 5 . . . . Terminals 31 | . 18 . . . 5 4 . 4 . Fabricators . | . . . . . . . . . . Repair Stations 5 | . 2 . . . 3 . . . . Recycling Units 8 | . 7 . . . . . . . 1 Scanalyzers . | . . . . . . . . . . Garrison Access 2 | . . . . . 1 . 1 . . Terminal Hacks 12 | . 3 . 2 1 2 . . 4 . Record 1 | . . . 1 . . . . . . Robot Analysis 5 | . 3 . . . 2 . . . . Open Door 2 | . . . . 1 . . . 1 . Emergency Access Points 1 | . . . . . . . . 1 . Garrison Registry 1 | . . . . . . . . 1 . Security Stations 1 | . . . . . . . . 1 . Derelict Proto ID Bank 1 | . . . 1 . . . . . . Fabricator Hacks . | . . . . . . . . . . Repair Station Hacks 4 | . 2 . . . 2 . . . . Scan Component 2 | . 1 . . . 1 . . . . Repair 2 | . 1 . . . 1 . . . . Recycling Unit Hacks 2 | . 2 . . . . . . . . Report Inventory 2 | . 2 . . . . . . . . Scanalyzer . | . . . . . . . . . . Garrison Access Hacks 2 | . . . . . 1 . 1 . . Unlock Access 2 | . . . . . 1 . 1 . . Unauthorized Hacks 9 | . 8 . . . 1 . . . . Terminals 6 | . 5 . . . 1 . . . . Assimilate 1 | . 1 . . . . . . . . Botnet 4 | . 3 . . . 1 . . . . Operators 1 | . 1 . . . . . . . . Fabricators . | . . . . . . . . . . Repair Stations . | . . . . . . . . . . Recycling Units 3 | . 3 . . . . . . . . Monitor 1 | . 1 . . . . . . . . Reject 1 | . 1 . . . . . . . . Mask 1 | . 1 . . . . . . . . Scanalyzers . | . . . . . . . . . . Garrison Access . | . . . . . . . . . . Data Cores Recovered . | . . . . . . . . . . Used . | . . . . . . . . . . Hacking Detections 14 | . 7 . . . 2 2 . 2 1 Full Trace Events 4 | . 3 . . . . 1 . . . Feedback Events 1 | . 1 . . . . . . . . Corruption 1 | . 1 . . . . . . . . Feedback Blocked . | . . . . . . . . . . Robot Schematics Acquired . | . . . . . . . . . . Robots Built . | . . . . . . . . . . Authchips . | . . . . . . . . . . Time . | . . . . . . . . . . Total Robot Build Rating . | . . . . . . . . . . Part Schematics Acquired . | . . . . . . . . . . Parts Built . | . . . . . . . . . . Authchips . | . . . . . . . . . . Time . | . . . . . . . . . . Total Part Build Rating . | . . . . . . . . . . Parts Repaired 2 | . 1 . . . 1 . . . . Time 52 | . 26 . . . 26 . . . . Parts Recycled . | . . . . . . . . . . Recycled Matter . | . . . . . . . . . . Retrieved Matter . | . . . . . . . . . . Retrieved Components . | . . . . . . . . . . Parts Scanalyzed . | . . . . . . . . . . Part Schematics Acquired . | . . . . . . . . . . Parts Damaged . | . . . . . . . . . . Bothacking | -11 -10 -10 -10 -9 -8 -8 -8 -8 -7 ------------ Run | Yrd Mat Min Exi Min Mat Gar Mat Gar Fac Used RIF Installer 3 | . . . . . . 1 . 2 . Signal Jammer 1 | . . . . . . . . 1 . Watcher Feeds 1 | . . . . . . . . 1 . Robots Hacked 28 | . . . . . . 2 4 15 7 Non-combat 2 | . . . . . . . . . 2 Combat 26 | . . . . . . 2 4 15 5 Robot Hacks Applied 34 | . . . . . . 2 5 18 9 parse_system 1 | . . . . . . . . 1 . map_route 2 | . . . . . . . . . 2 mark_security 1 | . . . . . . . . . 1 find_garrison 1 | . . . . . . . 1 . . scatter_targeting 2 | . . . . . . . . 1 1 mark_system 1 | . . . . . . . 1 . . overload_power 1 | . . . . . . . . 1 . amplify_resonance 1 | . . . . . . . . 1 . reboot_system 1 | . . . . . . . . 1 . overwrite_iff 5 | . . . . . . . . 2 3 streamctrl_high 3 | . . . . . . 2 . 1 . formatsys_high 15 | . . . . . . . 3 10 2 Relay Couplers Released 36 | . . . . . . 18 . 18 . Machine Destruction 33 | . . . . . . 15 . 18 . Programmers 3 | . . . . . . 3 . . . Attached 17 | . . . . . . 2 3 11 1 Fabnet Peak Effective % . | . . . . . . . . . . Robots Rewired 3 | . . . . . . . . 3 . Allies Hacked 1 | . . . . . . . . . 1 Hacks Repelled . | . . . . . . . . . . Allies | -11 -10 -10 -10 -9 -8 -8 -8 -8 -7 -------- Run | Yrd Mat Min Exi Min Mat Gar Mat Gar Fac Total Allies 30 | . 1 . . 2 . 2 3 17 5 Largest Group 10 | . 1 1 1 2 . 1 2 9 10 Highest-Rated Group 249 | . 10 10 10 35 . 5 31 230 249 Highest-Rated Ally 85 | . 10 10 10 31 . 5 16 85 81 Total Orders 48 | . 2 2 . 1 . . 2 37 4 STAY 26 | . 1 1 . 1 . . 1 19 3 FOLLOW 22 | . 1 1 . . . . 1 18 1 Ally Attacks 135 | . . . . 6 . 10 6 85 28 Total Damage 2606 | . . . . 42 . 62 128 1585 789 Kills 38 | . . . . 1 . 1 1 27 8 Allies Corrupted 1 | . . . . . . . . . 1 Allies Melted 1 | . . . . 1 . . . . . Intel | -11 -10 -10 -10 -9 -8 -8 -8 -8 -7 ------- Run | Yrd Mat Min Exi Min Mat Gar Mat Gar Fac Robot Analysis Total 5 | . 3 . . . 2 . . . . Derelict Logs Recovered 2 | . . 1 . 1 . . . . . Drone Launches . | . . . . . . . . . . Drone Recoveries . | . . . . . . . . . . Exploration | -11 -10 -10 -10 -9 -8 -8 -8 -8 -7 ------------- Run | Yrd Mat Min Exi Min Mat Gar Mat Gar Fac Turns Passed 13526 | 58 1573 1491 520 844 1496 3248 121 3604 571 Spaces Moved 5671 | 39 772 797 252 354 444 1433 54 1382 144 Core . | . . . . . . . . . . Treads 2621 | . 762 797 252 221 . . . 445 144 Legs 49 | 39 10 . . . . . . . . Wheels 3001 | . . . . 133 444 1433 54 937 . Hover . | . . . . . . . . . . Flight . | . . . . . . . . . . Fastest Speed 120 | 120 120 160 160 155 140 170 170 140 320 Average Speed 191 | 120 159 160 202 208 189 183 183 212 373 Slowest Speed 400 | 120 160 160 240 240 200 200 185 320 400 Overloaded Moves . | . . . . . . . . . . Propulsion Burnouts . | . . . . . . . . . . Robots Hopped . | . . . . . . . . . . Cave-ins Triggered . | . . . . . . . . . . Exploration Rate (%) 57 | 3 99 96 60 79 39 91 11 90 6 Regions Visited 9 Branch Regions 3 Pre-discovered Areas 3 | . . . 1 2 . . . . . Known Exits Taken 2 | . . . . . 1 . 1 . . Unknown Exits Taken 5 | 1 1 1 1 1 . . . . . Scrap Searched 4 | . . 2 . 2 . . . . . Spaces Dug 16 | . . . . 13 . 3 . . . Terrain Destroyed 101 | . . . . 54 32 15 . . . Melee 2 | . . . . . . 2 . . . Projectile 4 | . . . . 4 . . . . . AOE 95 | . . . . 50 32 13 . . . Terrain Rammed . | . . . . . . . . . . Walls Destroyed . | . . . . . . . . . . Machines Disabled . | . . . . . . . . . . Actions | -11 -10 -10 -10 -9 -8 -8 -8 -8 -7 --------- Run | Yrd Mat Min Exi Min Mat Gar Mat Gar Fac Total 7797 | 46 1063 947 266 453 1052 1786 73 1941 170 Wait 1507 | 4 239 104 . 83 559 109 6 395 8 Move 5662 | 38 771 796 251 353 443 1431 54 1381 144 Hop . | . . . . . . . . . . Pick Up 70 | 1 12 2 5 3 10 25 . 11 1 Fast Attach 24 | 1 3 2 1 . 4 4 1 8 . Attach 32 | . . 2 . 4 4 9 3 6 4 Detach 6 | . . . . 1 . 1 . 4 . Swap 34 | . 4 2 1 1 3 10 1 12 . Drop 57 | . 8 2 8 . 5 23 2 9 . Fire 221 | 2 26 37 . 7 22 53 6 55 13 Melee 129 | . . . . . 2 89 . 38 . Ram . | . . . . . . . . . . Kick . | . . . . . . . . . . Crush 1 | . . . . 1 . . . . . Escape Stasis 36 | . . . . . . 16 . 20 . Rewire 5 | . . . . . . 3 . 2 . Trap . | . . . . . . . . . . Miscellaneous 13 | . . . . . . 13 . . . Route ------- -11/Scrapyard -10/Materials (discovered 4 exits: [*Mat x3] / [*Min]) -10/Mines (discovered 3 exits: [*Mat x2] / *Exi) -10/Exiles -9/Mines (discovered 2 exits: *Mat x2) -8/Materials (discovered 3 exits: Fac x2 / Gar) -8/Garrison (discovered 3 exits: *Mat x3) -8/Materials -8/Garrison (discovered 3 exits: *Fac x3) -7/Factory (discovered 1 exit: [Fac]) History --------- Turn | Location | Event 1 | -11/Scrapyard | Discovered new exit (range 3) 59 | -11/Scrapyard | Entered Materials 260 | -10/Materials | Repaired Seismic Detector 300 | -10/Materials | Build established: Mutant 521 | -10/Materials | Discovered new exit (range 13) 682 | -10/Materials | Discovered new exit (range 16) 1008 | -10/Materials | Discovered new exit (range 16) 1164 | -10/Materials | Discovered new exit (range 7) 1632 | -10/Materials | Entered Mines 1632 | -10/Mines | Accompanied by 1 ally 2106 | -10/Mines | A weapon hastily lodged in a ceiling crevice suddenly fell to the ground 2186 | -10/Mines | Deemed a non-threat by the Exiles lab entrance 2186 | -10/Mines | Discovered new exit (range 5) 2386 | -10/Mines | Learned 8 Materials zone layouts 2421 | -10/Mines | Discovered new exit (range 6) 2673 | -10/Mines | Discovered new exit (range 8) 2864 | -10/Mines | Joined a pair of Derelicts in attacking an 0b10 outpost 3123 | -10/Mines | Entered Exiles 3123 | -10/Exiles | Accompanied by 1 ally 3179 | -10/Exiles | Met 8R-AWN 3192 | -10/Exiles | Build established: Scavenger-Mutant 3201 | -10/Exiles | Met EX-HEX 3251 | -10/Exiles | Met EX-BIN 3269 | -10/Exiles | Aligned with FarCom system 3270 | -10/Exiles | Given EX-Vault access code 3307 | -10/Exiles | Opened EX-Vault 3320 | -10/Exiles | Found Firepult 3326 | -10/Exiles | Found Modified TNC 3380 | -10/Exiles | Warned to stay clear of 0b10 Research branches 3402 | -10/Exiles | Exiles lab attacked by MAIN.C 3459 | -10/Exiles | Learned location of Zion (-6) 3617 | -10/Exiles | Discovered new exit (range 14) 3643 | -10/Exiles | Stole two prototypes: Firepult, Modified TNC 3643 | -10/Exiles | Entered Mines 3643 | -9/Mines | Accompanied by 1 ally 3677 | -9/Mines | Discovered new exit (range 9) 3697 | -9/Mines | Met a Derelict shopkeep closing up shop 3959 | -9/Mines | Learned location of Storage (-9) 4115 | -9/Mines | Assembled infested the area 4191 | -9/Mines | Core integrity fell below 50% 4218 | -9/Mines | Destroyed 7 combat bots 4361 | -9/Mines | Discovered new exit (range 7) 4487 | -9/Mines | Entered Materials 4487 | -8/Materials | Evolved 4 slots: Utility x4 4488 | -8/Materials | Identified exit to Factory 4505 | -8/Materials | Build established: Mutant 4753 | -8/Materials | Repaired Lgt. Treads 5971 | -8/Materials | Identified exit to Garrison 5983 | -8/Materials | Entered Garrison 6284 | -8/Garrison | Triggered checkpoint 6406 | -8/Garrison | Destroyed 7 combat bots 6504 | -8/Garrison | Triggered checkpoint 6527 | -8/Garrison | Triggered checkpoint 6582 | -8/Garrison | Triggered checkpoint 6609 | -8/Garrison | Destroyed 13 combat bots 6614 | -8/Garrison | Lost 6 parts (2n3u1w) 6703 | -8/Garrison | Discovered new exit (range 12) 6865 | -8/Garrison | Discovered new exit (range 12) 6920 | -8/Garrison | Triggered checkpoint 7124 | -8/Garrison | Triggered checkpoint 7162 | -8/Garrison | Installed Relay Interface Framework 7193 | -8/Garrison | Garrison Relay disabled 7272 | -8/Garrison | Discovered new exit (range 14) 7605 | -8/Garrison | Garrison Relay disabled 7778 | -8/Garrison | Triggered checkpoint 7803 | -8/Garrison | Build established: Bothacker-Mutant 7884 | -8/Garrison | Garrison Relay disabled 8236 | -8/Garrison | Phase Generator disabled 8263 | -8/Garrison | Garrison Relay disabled 8657 | -8/Garrison | Core integrity fell below 50% 8867 | -8/Garrison | System corruption reached 10% 9065 | -8/Garrison | Garrison Relay disabled 9231 | -8/Garrison | Entered Materials 9352 | -8/Materials | Identified exit to Garrison 9352 | -8/Materials | Entered Garrison 9352 | -8/Garrison | Accompanied by 2 allies 9364 | -8/Garrison | Discovered exit to Factory (range 60) 9364 | -8/Garrison | Discovered exit to Factory (range 51) 9364 | -8/Garrison | Discovered exit to Factory (range 73) 9416 | -8/Garrison | Triggered checkpoint 9488 | -8/Garrison | Spotted B-75 Beast 9522 | -8/Garrison | Assimilated Beast 3a with formatsys_high 9602 | -8/Garrison | Garrison Relay disabled 9676 | -8/Garrison | Triggered checkpoint 9682 | -8/Garrison | Triggered checkpoint 9692 | -8/Garrison | Triggered checkpoint 9706 | -8/Garrison | Triggered checkpoint 9748 | -8/Garrison | Lost 4 allies 9850 | -8/Garrison | Triggered checkpoint 9913 | -8/Garrison | Expanded RIF knowledge: Watcher Feeds 10158 | -8/Garrison | Learned Factory security intel 10190 | -8/Garrison | Expanded RIF knowledge: Signal Jamming 10266 | -8/Garrison | Triggered checkpoint 10460 | -8/Garrison | Triggered checkpoint 10775 | -8/Garrison | Build established: Mutant 10970 | -8/Garrison | Triggered checkpoint 11514 | -8/Garrison | Build established: Bothacker-Mutant 11597 | -8/Garrison | Garrison Relay disabled 11628 | -8/Garrison | Rescued a captive Derelict 11916 | -8/Garrison | Triggered checkpoint 11918 | -8/Garrison | Garrison Relay disabled 12468 | -8/Garrison | Triggered checkpoint 12489 | -8/Garrison | Garrison Relay disabled 12956 | -8/Garrison | Entered Factory 12956 | -7/Factory | Accompanied by 9 allies 12956 | -7/Factory | Evolved 2 slots: Utility x2 12958 | -7/Factory | FarCom data flow suspended 13336 | -7/Factory | Discovered new exit (range 146) 13356 | -7/Factory | First assault squad dispatched 13527 | -7/Factory | Self-destructed Last Messages --------------- >>overwrite_iff Rewriting IFF filter. 13521_ U-05 Engineer lays Concrete. 13521_ B-48 Gladiator destroyed. 13522_ Jacked B-48 Gladiator... >>overwrite_iff Rewriting IFF filter. 13522_ B-48 Gladiator sneak attacks. 13522_ P-60 Hacker knocked back. 13522_ U-05 Engineer lays Concrete. 13523_ M-28 Smith repairs Welding Torch. 13523_ U-05 Engineer lays Concrete. 13523_ Jacked G-47 Trooper... >>overwrite_iff Rewriting IFF filter. 13523_ Remote Datajack destroyed. 13524_ U-05 Engineer lays Concrete. 13525_ Remote Datajack destroyed. 13526_ U-05 Engineer lays Concrete. 13526_ P-60 Hacker hacks B-48 Gladiator, rebooting. Map ----- +----------------------------------------------------+ | ??????????????????????????????????# #???????# | | ??????????????????????????????????# #???????# | | ??????????????????????????????????# #???????# | | ??????????????????????????????????# #???????# | | ???????????????????????????? ?????# #???????# | | ???????????????????????????? ?????# #???????# | | ???????????????????????????# #????# #???????# | | ???????????????????????????# #????# #???????# | | ???????????????????????????# #????# #???????# | | ???????????????????????????# #????# #???????? | | ?????????????????########### #???## #???????? | | ?????????????????# # #### # #???????? | | ?????????????????# # ###### #????????? | | ?????????????????# # #????????? | | ?????????????????# # #????????? | | ?????????????????# # #????????? | | ?????????????????# # """ #????????? | | ?????#########???# # ! """ #????????? | | ????? #???# # =%! """ #????????? | | # ? ######### !m % ######### | | # """ """ # [ g%m | | # """ """ # gu=" "" | | # """ """ # p "" % | | # + b % | | # """ """ # g d%%= | | #! """ """ # @ # ########## | | # """ """ # " ! # #????????? | | # # " # #????????? | | # ! # " + #????????? | | # # " # #????????? | | ############## " # w #????????? | | ?????????????# " # #????????? | | ?????????????# " # #????????? | | ????########## " ########### #????????? | | ????# " t ########### #????????? | | ????# " " #????????? | | ????# "Y" #????????? | | ????# = """ "" "" "" #????????? | | ????# =%=* ##### "" "" "" #????????? | | ????###########+######## ""? ?"" """ #????????? | | ?????????# =%% ##[[ ""???"" """ ##???????? | | ?????????# """"" ##[ ""??""" ?"" ????????? | | ?????????# "" F" ## ???? ?? ##???????? | | ?????????# "" "" ##? ???? ??? #????????? | | ?????????# #?? ??????? ???? #????????? | | ?????????# #?????????? ???? #????????? | | ?????????# """" "" " #?????????#?????###????????? | | ?????????# """" """" #??????????????????????????? | | ?????????# """" """" #??????????????????????????? | | ?????????# """" """" #??????????????????????????? | +----------------------------------------------------+ Best States ------------- Heat Dissipation 45 Energy Generation 15 Energy Capacity 280 Matter Stores 300 Matter Capacity 300 Sight Range 20 Terrain Scan Density 10 Armor Coverage 750 Resistance: KI 30 Evasion (%) 55 Targeting Accuracy 8 Recoil Reduction 2 Relay Coupler Types 5 Relay Coupler Value 113 Item Schematics ----------------- None Robot Schematics ------------------ None Fabricated ------------ Nothing Alien Tech Used ----------------- None Achievements -------------- Infiltrator Challenges ------------ None Game ------ Seed HackingHardcellConstruct Manual? 0 Play Time 01:32:20 Cumulative 73.9 hours Start 2024.05.02 @ 08:09:26 End 2024.05.02 @ 12:10:13 Sessions 3 Manual Loads 0 Difficulty Rogue Special Mode None Game No. 52 Rogue 52 Adventurer 0 Explorer 0 Win Type - Total 1 Types 1/0/0/0/0/0/0/0/0 Lore% 51 Gallery% 43 Achievement% 40 Wizard Run 0 Options --------- Layout 0 ASCII 0 Keyboard 0 Movement Mouse Keybinds 0 Fullscreen 1 Font 18/SmallcapsGlow Map View 76x50 Zoom Use 0% Tactical HUD 1 Map Filters NONE Filters NONE Steam 1 RUN: 6ee7251a-1cd7-4b65-8113-bd7a89bd24c3